[Event "Swedish Championship U20 2022"]
[Site "Uppsala"]
[Date "2022.07.02"]
[Round "1.1"]
[White "Torngren, Gustav"]
[Black "Ostlund, Joar"]
[Result "0-1"]
[ECO "C54"]
[WhiteElo "2273"]
[BlackElo "2222"]
[Annotator "TA"]
[PlyCount "76"]
[EventDate "2022.07.01"]
[EventType "tourn"]
[EventCountry "SWE"]
[SourceTitle "playchess.com"]
[Source "ChessBase"]
[SourceQuality "1"]
[TimeControl "40/5400+30:1800+30"]

{[%evp 9,76,0,0,-45,-44,-39,-32,-52,-32,-52,-39,-29,-26,-40,-53,-55,73,76,65,-25,-24,-36,0,-77,-89,-87,-56,-98,0,0,0,0,0,0,0,0,15,-60,-5,-33,20,14,14,0,0,-106,-78,-92,-92,-233,-228,-212,-197,-191,-191,-209,-217,-886,-881,-873,-854,-1068,-688,-679,-600,-560,-556,-534,-487]} 1. e4 {[%emt 0:00:28]} e5 {[%emt 0:00:11]} 2. Nf3 {[%emt 0:00:19]} Nc6 {[%emt 0:00:26]} 3. Bc4 {[%emt 0:00:31]} Bc5 {[%emt 0:00:31]} 4. c3 {[%emt 0:00:18]} Nf6 {[%emt 0:00:28]} 5. d4 {[%emt 0:00:18]} exd4 {[%emt 0:00:25]} 6. b4 {[%emt 0:00:14] C54: Giuoco Piano: 4 c3 Nf6, main lines with 5 d4 and 5 d3.} Bb6 {[%emt 0:06:40]} 7. e5 {[%emt 0:00:20] [#]} d5 $1 {[%emt 0:03:59]} 8. exf6 {[%emt 0:00:24] Black is slightly better.} dxc4 {[%emt 0:00:25]} 9. Qe2+ {[%emt 0:00:20] The main line 9.Qe2+ scores better than 9.b5.} Be6 $1 {[%emt 0:07:45]} (9... Kf8 10. b5 Na5 11. Qe5 $14) 10. b5 $1 {[%emt 0:00:32]} Na5 $1 {[%emt 0:05:16]} 11. fxg7 {[%emt 0:01:14]} Rg8 {[%emt 0:00:13]} 12. cxd4 {[%emt 0:00:19] 0-0 is the strong threat.} Rxg7 {[%emt 0:04:09]} (12... Qd7 $15 {keeps the upper hand.} 13. Nc3 O-O-O) 13. Nc3 $16 {[%emt 0:03:22] Black must now prevent d5.} Bxd4 {[%emt 0:32:36]} 14. Nxd4 {[%emt 0:00:56]} (14. Bb2 $1 $14 Bf6 15. Rd1) 14... Qxd4 $11 {[%emt 0:00:13]} 15. Bb2 {[%emt 0:00:22] [#] Hoping for Ne4.} Qg4 $146 {[%emt 0:12:52]} (15... Rxg2 {is more complex.} 16. Ne4 Qd3 17. Nf6+ Kf8) ({Predecessor:} 15... Rxg2 16. Ne4 Qd3 17. Ng3 O-O-O 18. Bf6 Re8 19. Rd1 Qxe2+ 20. Nxe2 Bg4 {0-1 (20) Gracia Alvarez,G (2292)-Krivonosov,O (2371) Chess.com INT 2021}) 16. Ne4 {[%emt 0:18:33]} (16. O-O-O $11 Qxe2 17. Nxe2 Rxg2 18. Nf4 Rxf2 19. Rhg1 Rxf4 20. Rg8+ Ke7 21. Ba3+ (21. Rxa8 Rf5 $11) 21... Kf6 22. Bb2+ Ke7 23. Ba3+ (23. Rxa8 Rf5 $11) 23... Kf6 24. Bb2+ Ke7) 16... Qxe2+ $17 {[%emt 0:00:44]} (16... Qxg2 $2 17. O-O-O Kf8 18. Qe3 $18) 17. Kxe2 {[%emt 0:00:03]} Rg6 {[%emt 0:00:20]} 18. Rad1 {[%emt 0:02:17]} Bf5 {[%emt 0:01:01]} (18... Rxg2 $6 19. Rhe1 $11) (18... a6 $1 $17 {[%cal Ra6b5]} 19. b6 (19. Nf6+ Ke7 $19) 19... cxb6) 19. Nf6+ $11 {[%emt 0:01:59]} Ke7 $1 {[%emt 0:00:43]} 20. Nd5+ {[%emt 0:01:27]} Kf8 {[%emt 0:00:17]} 21. Ba3+ {[%emt 0:02:09]} Kg7 {[%emt 0:00:18]} 22. Bb2+ {[%emt 0:01:24]} Kf8 $1 {[%emt 0:00:31]} 23. Rd4 {[%emt 0:01:16]} ({White should play} 23. Rhe1 $11) 23... c6 {[%emt 0:04:31]} (23... Rxg2 24. Ba3+ (24. Kf3 Rg6 $11) 24... Kg7 25. Bb2 $11) (23... c5 $15 24. Rf4 Re8+ 25. Kf3 Bd3) 24. Nf4 {[%emt 0:02:11] [#]} Rg5 {[%emt 0:03:11]} (24... cxb5 $1 $15 25. Nxg6+ (25. Rd5 Bd3+) 25... hxg6) 25. Bc3 {[%emt 0:08:42]} Bd3+ $1 {[%emt 0:02:33]} 26. Kf3 {[%emt 0:00:11]} Rxb5 {[%emt 0:01:39]} 27. a4 {[%emt 0:00:26] [#]} (27. Nxd3 $11 cxd3 28. Rd1) 27... Rb3 $1 $17 {[%emt 0:01:52]} 28. Rc1 {[%emt 0:02:28]} ({Don't blunder} 28. Bxa5 $2 Bf5+ 29. Nd3 (29. Ke2 $2 Re8+ 30. Kd2 Rb2+ 31. Kd1 Rb1+ 32. Kd2 Rxh1 $19) 29... Bxd3 $19) 28... c5 {[%emt 0:02:12]} 29. Rd6 {[%emt 0:00:31] [#] This costs White the game.} ({Not} 29. Rxd3 $2 cxd3 30. Nxd3 b6 $19) (29. Rd5 $17 Nc6 30. Rxc5) 29... Nc6 $1 $19 {[%emt 0:00:43][%cal Od3c2] aiming for ...Bc2!} 30. Kg4 {[%emt 0:02:03]} Re8 {[%emt 0:01:16]} 31. Bf6 {[%emt 0:02:35]} Ne5+ {[%emt 0:01:11]} 32. Kg5 {[%emt 0:00:58] [#]} Rb6 $1 {[%emt 0:03:22]} 33. Rd5 {[%emt 0:01:52]} (33. Nxd3 cxd3 34. Rd5 h6+ 35. Kf5) 33... h6+ $1 {[%emt 0:00:20] Black is clearly winning.} 34. Kh4 {[%emt 0:01:01]} Rxf6 {[%emt 0:00:09]} 35. Nxd3 {[%emt 0:00:05]} Nxd3 {[%emt 0:01:35]} 36. Rxc4 {[%emt 0:00:10]} Rf4+ {[%emt 0:00:44]} 37. Rxf4 {[%emt 0:00:03]} Nxf4 {[%emt 0:00:10]} 38. Rxc5 {[%emt 0:00:03]} Nxg2+ {[%emt 0:00:54] Weighted Error Value: White=0.54/Black=0.27 (precise)} 0-1

[Event "Swedish Championship U20 2022"]
[Site "Uppsala"]
[Date "2022.07.02"]
[Round "1.2"]
[White "Wernberg, Hugo"]
[Black "Rasti, Arvin"]
[Result "1/2-1/2"]
[ECO "E52"]
[WhiteElo "2316"]
[BlackElo "2136"]
[Annotator "TA"]
[PlyCount "48"]
[EventDate "2022.07.01"]
[EventType "tourn"]
[EventCountry "SWE"]
[SourceTitle "playchess.com"]
[Source "ChessBase"]
[SourceQuality "1"]
[TimeControl "40/5400+30:1800+30"]

{[%evp 12,48,7,15,16,14,13,20,22,18,15,-12,22,30,7,8,0,14,7,-14,-12,-9,9,16,16,-2,-2,-2,-2,-28,0,-42,-33,-36,-14,-18,0,-49,4]} 1. d4 {[%emt 0:00:03]} Nf6 {[%emt 0:00:25]} 2. c4 {[%emt 0:00:09]} e6 {[%emt 0:00:35]} 3. Nc3 {[%emt 0:00:10]} Bb4 {[%emt 0:00:15]} 4. e3 {[%emt 0:00:11]} O-O {[%emt 0:00:30]} 5. Bd3 {[%emt 0:00:06]} d5 {[%emt 0:00:13]} 6. Nf3 {[%emt 0:00:16]} b6 {[%emt 0:00:14] 6...dxc4 gains popularity.} 7. O-O {[%emt 0:02:24]} Ba6 {[%emt 0:00:52] E52: Nimzo-Indian: Rubinstein: 4...0-0 5 Nf3 d5 6 Bd3 b6.} 8. cxd5 {[%emt 0:08:35]} exd5 {[%emt 0:00:11]} 9. Bxa6 {[%emt 0:04:43]} Nxa6 {[%emt 0:00:06] The position is equal.} 10. Qd3 {[%emt 0:03:34]} Qc8 {[%emt 0:05:01]} 11. a3 {[%emt 0:04:56] [#]} Be7 $146 {[%emt 0:05:53]} (11... Bxc3 $5 12. bxc3 c5 $11) ({Predecessor:} 11... Bxc3 12. bxc3 c5 13. Nd2 Re8 14. f3 Qb7 15. Bb2 c4 16. Qe2 Re6 17. Rfe1 Rae8 18. Nf1 Nh5 19. Qd2 f5 20. a4 Qf7 21. g3 Nc7 22. Ba3 h6 23. h3 Nf6 24. g4 Nh7 25. Kg2 fxg4 {½-½ (25) Johannessen,L (2519)-Leko,P (2744) Tromsoe 2013}) 12. e4 {[%emt 0:22:06]} dxe4 {[%emt 0:12:03]} 13. Nxe4 {[%emt 0:00:11]} Nxe4 {[%emt 0:00:34]} 14. Qxe4 {[%emt 0:00:21]} Re8 {[%emt 0:04:33][%cal Bf8e8,Be8e6,Be6d6][%mdl 32]} 15. Bf4 {[%emt 0:20:15]} Bd6 {[%emt 0:07:50]} 16. Be5 {[%emt 0:02:38]} f6 {[%emt 0:07:04] Against Ng5} 17. Qd5+ {[%emt 0:03:53]} Qe6 {[%emt 0:00:41]} 18. Qxe6+ {[%emt 0:00:21]} (18. Qb5 {keeps more tension.} Bxe5 19. Rfe1 Nc5 20. dxe5 c6 21. Qf1) 18... Rxe6 {[%emt 0:00:05]} 19. Bxd6 {[%emt 0:00:30]} Rxd6 {[%emt 0:00:11]} 20. Rfc1 {[%emt 0:04:32]} Re8 {[%emt 0:05:33]} 21. b4 {[%emt 0:03:12]} c6 {[%emt 0:02:47]} 22. g3 {[%emt 0:01:31]} Kf7 {[%emt 0:07:08]} 23. Rc4 {[%emt 0:03:59]} Nc7 {[%emt 0:04:20]} 24. a4 {[%emt 0:04:47]} (24. Rac1 $11 {should be considered.}) 24... b5 {[%emt 0:05:25] Weighted Error Value: White=0.12 (very precise) /Black=0.11 (very precise)} (24... Nd5 $15) 1/2-1/2

[Event "Swedish Championship U20 2022"]
[Site "Uppsala"]
[Date "2022.07.02"]
[Round "1.3"]
[White "Grahn, Vidar"]
[Black "Olsson, William"]
[Result "0-1"]
[ECO "B78"]
[WhiteElo "2003"]
[BlackElo "2284"]
[Annotator "TA"]
[PlyCount "106"]
[EventDate "2022.07.01"]
[EventType "tourn"]
[EventCountry "SWE"]
[SourceTitle "playchess.com"]
[Source "ChessBase"]
[SourceQuality "1"]
[TimeControl "40/5400+30:1800+30"]

{[%evp 32,106,45,37,36,0,0,0,11,0,127,60,54,50,54,54,116,26,40,-54,0,-56,-38,-38,-48,-281,-233,-268,-266,-283,-236,-286,-220,-243,-244,-243,-239,-225,-212,-236,-234,-320,-319,-519,-365,-318,-324,-416,-306,-649,-313,-330,-300,-306,-309,-320,-299,-331,-319,-320,-312,-443,-443,-487,-489,-627,-613,-613,-599,-8172,-7526,-12270,-7557,-6652,-6337,-2288,-1488]} 1. e4 {[%emt 0:00:05]} c5 {[%emt 0:00:15]} 2. Nf3 {[%emt 0:00:04]} d6 {[%emt 0:00:04]} 3. d4 {[%emt 0:00:04]} cxd4 {[%emt 0:00:03]} 4. Nxd4 {[%emt 0:00:04]} Nf6 {[%emt 0:00:05]} 5. Nc3 {[%emt 0:00:03]} g6 {[%emt 0:00:06]} 6. Be3 {[%emt 0:00:06]} Bg7 {[%emt 0:00:03]} 7. f3 {[%emt 0:00:07]} O-O {[%emt 0:00:04]} 8. Qd2 {[%emt 0:00:04]} Nc6 {[%emt 0:00:05]} 9. Bc4 {[%emt 0:00:04]} Bd7 {[%emt 0:00:03]} 10. O-O-O {[%emt 0:00:07]} Rc8 {[%emt 0:00:04]} 11. Bb3 {[%emt 0:00:04]} Ne5 {[%emt 0:00:13]} 12. h4 {[%emt 0:00:08]} h5 {[%emt 0:00:03]} 13. Bg5 {[%emt 0:00:13]} Rc5 {[%emt 0:00:07]} 14. Kb1 {[%emt 0:00:24]} b5 {[%emt 0:00:08]} 15. g4 {[%emt 0:00:35]} hxg4 {[%emt 0:00:17]} 16. h5 {[%emt 0:00:20]} Nxh5 {[%emt 0:00:06]} 17. Nd5 {[%emt 0:00:10]} Re8 {[%emt 0:00:06] B78: Sicilian Dragon: Yugoslav Attack, 9 Bc4 Bd7 10 0-0-0 Rc8.} (17... Nxf3 18. Nxf3 Rxd5 19. Bxd5 gxf3 20. Rdg1 $16) 18. Rdg1 {[%emt 0:05:03] fxg4 is the strong threat.} (18. Rxh5 $5 Rxd5 19. Bxd5 gxh5 20. Qh2 gxf3 21. Qxh5 $14) 18... Rxd5 $1 {[%emt 0:19:57] [#]} 19. exd5 $146 {[%emt 0:03:05]} ({Predecessor:} 19. Bxd5 Qb6 20. c3 b4 21. cxb4 Nc4 22. Bxc4 Qxd4 23. Qxd4 Bxd4 24. fxg4 Nf6 25. Rd1 {0-1 (41) Palomo,F (2347)-Sanchez Alvarez,K (2261) Porlamar 2018}) 19... Qb6 {[%emt 0:03:39] The position is equal.} (19... gxf3 20. Bh6 Bxh6 21. Qxh6 $14) 20. Be3 {[%emt 0:10:19][%cal Od4e6] Strongly threatening Ne6!} Qb7 {[%emt 0:06:13] [#]} (20... gxf3 $2 21. Rxh5 $1 {[%mdl 512]} Ng4 22. Rxg4 $1 {[%mdl 512]} Bxg4 23. Rh4 $18) (20... a5 $11) 21. Bh6 {[%emt 0:03:24]} (21. Rxh5 $1 $16 {[%mdl 512] Hoping for Rhh1.} gxh5 22. Qh2) 21... Bf6 $1 $14 {[%emt 0:01:59]} (21... Nxf3 $2 22. Nxf3 Bf6 {[#]} 23. Be3 $1 $18) 22. fxg4 {[%emt 0:08:58]} Bxg4 {[%emt 0:08:34]} 23. Nc6 {[%emt 0:08:04] And now Nxe5 would win.} Bf3 {[%emt 0:14:07]} (23... Qc8 $14) 24. Rh3 {[%emt 0:00:47]} (24. Nxe5 $16 dxe5 25. Rh3) 24... Qc8 $11 {[%emt 0:01:17]} 25. Qh2 {[%emt 0:06:13]} (25. Rh2 $14) 25... Qf5 {[%emt 0:10:44]} (25... a5 $15 26. Nxa5 (26. Rxh5 Bxh5 27. Qxh5 a4 $17) 26... Qd7) 26. Bc1 {[%emt 0:09:52]} ({Reject} 26. Nxa7 Ng4 27. Rxh5 gxh5 $17) (26. Rf1 $1 $11 Qg4 27. Rg1 (27. Nxa7 Bg2 $11)) 26... Bg4 $15 {[%emt 0:02:40]} 27. Nd4 {[%emt 0:02:29]} Qe4 $36 {[%emt 0:01:15][%mdl 2048] Black has the initiative.} 28. Rxh5 {[%emt 0:01:02] White does not recover from this.} ({White should try} 28. Nxb5 $15 Nf3 29. Rxf3 Bxf3 30. Qf2) 28... Bxh5 {[%emt 0:02:51]} 29. Qxh5 {[%emt 0:00:37]} Qxd4 {[%emt 0:00:07]} 30. Rg2 {[%emt 0:02:09]} Qe4 {[%emt 0:01:27]} 31. Qh3 {[%emt 0:01:07]} Qh4 {[%emt 0:05:18]} 32. Qe3 {[%emt 0:01:32]} a5 {[%emt 0:01:35]} 33. c3 {[%emt 0:01:43]} b4 {[%emt 0:01:16]} 34. cxb4 {[%emt 0:02:12]} axb4 {[%emt 0:00:19]} 35. Bc2 {[%emt 0:01:47]} Kg7 {[%emt 0:01:23]} 36. b3 {[%emt 0:03:18]} Rc8 {[%emt 0:02:41][%cal Oe5f3] aiming for ...Nf3!} 37. Bd2 $2 {[%emt 0:02:17]} (37. Qf2 {was worth a try.}) 37... Rh8 {[%emt 0:05:03][%cal Oe5f3] White must now prevent ...Nf3!} 38. Be4 {[%emt 0:04:01]} Qh5 {[%emt 0:01:22]} 39. Rg1 {[%emt 0:01:36]} Nd7 {[%emt 0:02:38] Threatens to win with ...Qe5.} 40. Bg2 $2 {[%emt 0:05:04]} (40. Bf3 Qf5+ 41. Qe4 Qxe4+ 42. Bxe4) 40... Qf5+ {[%emt 0:02:31]} (40... Nc5 $142 41. Rf1 Qg4 42. Rxf6 exf6) 41. Qe4 $19 {[%emt 0:31:00]} Qxe4+ {[%emt 0:33:35]} 42. Bxe4 {[%emt 0:00:23] A strong pair of Bishops.} Rh4 {[%emt 0:00:23]} 43. Bc2 {[%emt 0:02:27]} Nc5 {[%emt 0:04:59]} 44. Rf1 {[%emt 0:03:03]} Rd4 {[%emt 0:01:25]} 45. Kc1 {[%emt 0:01:01]} Na6 {[%emt 0:00:59]} ({Don't blunder} 45... Rxd5 $2 46. Bxb4 Nd3+ 47. Bxd3 Rxd3 48. Bd2 $19) 46. Rd1 {[%emt 0:00:43]} (46. Rf3 $142) 46... Nc7 {[%emt 0:00:00] Black is clearly winning.} 47. Be1 {[%emt 0:00:00]} Nxd5 {[%emt 0:00:00]} 48. Rxd4 {[%emt 0:00:00]} Bxd4 {[%emt 0:00:00] KBB-KBN} 49. Be4 {[%emt 0:00:00]} Nc3 {[%emt 0:00:00]} 50. Bxc3 {[%emt 0:00:00]} Bxc3 {[%emt 0:00:00]} 51. Kc2 {[%emt 0:00:00]} f5 {[%emt 0:00:00]} 52. Bg2 {[%emt 0:00:00]} Bd4 {[%emt 0:00:00]} 53. Kd3 {[%emt 0:00:00]} Bc5 {[%emt 0:00:00] Weighted Error Value: White=0.84/Black=0.32} 0-1

[Event "Swedish Championship U20 2022"]
[Site "Uppsala"]
[Date "2022.07.02"]
[Round "1.4"]
[White "Nord, Alexander"]
[Black "Seo, Jung Hyun"]
[Result "1-0"]
[ECO "C00"]
[WhiteElo "2200"]
[BlackElo "2102"]
[Annotator "RC"]
[PlyCount "120"]
[EventDate "2022.07.01"]
[EventType "tourn"]
[EventCountry "SWE"]
[SourceTitle "playchess.com"]
[Source "ChessBase"]
[SourceQuality "1"]
[TimeControl "40/5400+30:1800+30"]

1. e4 {[%emt 0:00:03]} e6 {[%emt 0:00:26]} 2. d3 {[%emt 0:00:26]} d5 {[%emt 0:00:05]} 3. Nd2 {[%emt 0:00:07]} Nf6 {[%emt 0:00:05]} 4. g3 {[%emt 0:00:55]} Be7 {[%emt 0:00:10]} 5. Bg2 {[%emt 0:00:15]} c5 {[%emt 0:00:34]} 6. Ngf3 {[%emt 0:00:19]} Nc6 {[%emt 0:00:06]} 7. O-O {[%emt 0:00:30]} Qc7 {[%emt 0:00:26]} 8. Re1 {[%emt 0:00:23]} O-O {[%emt 0:00:15]} 9. e5 {[%emt 0:01:10]} Nd7 {[%emt 0:00:19]} 10. Qe2 {[%emt 0:00:05]} b5 {[%emt 0:01:35]} 11. Nf1 {[%emt 0:00:24]} a5 {[%emt 0:06:22]} 12. Bf4 {[%emt 0:00:21]} Ba6 {[%emt 0:04:11]} 13. h4 {[%emt 0:00:22]} c4 {[%emt 0:01:16]} 14. d4 {[%emt 0:10:42]} c3 {[%emt 0:00:46]} 15. b3 {[%emt 0:00:55]} a4 {[%emt 0:07:14]} 16. N1h2 {[%emt 0:03:32]} b4 {[%emt 0:07:00]} 17. Qe3 {[%emt 0:01:26]} Qb6 {[%emt 0:03:25]} 18. h5 {[%emt 0:12:05]} axb3 {[%emt 0:00:54]} 19. axb3 {[%emt 0:00:17]} Rfe8 {[%emt 0:07:44]} 20. Ng4 {[%emt 0:12:59]} Bb5 {[%emt 0:04:40]} 21. Bg5 {[%emt 0:16:54]} Rxa1 {[%emt 0:09:14]} 22. Rxa1 {[%emt 0:00:02]} f6 {[%emt 0:02:19]} 23. exf6 {[%emt 0:03:56]} Bxf6 {[%emt 0:00:15]} 24. Bxf6 {[%emt 0:02:16]} Nxf6 {[%emt 0:02:34]} 25. Nxf6+ {[%emt 0:01:32]} gxf6 {[%emt 0:00:03]} 26. Qf4 {[%emt 0:00:27]} Be2 {[%emt 0:03:05]} 27. h6 {[%emt 0:11:35]} Bxf3 {[%emt 0:03:40]} 28. Bxf3 {[%emt 0:00:05]} Qb7 {[%emt 0:11:38]} 29. Qxf6 {[%emt 0:00:17]} Qe7 {[%emt 0:01:09]} 30. Qxe7 {[%emt 0:05:56]} Rxe7 {[%emt 0:02:06]} 31. Bh5 {[%emt 0:03:32]} Ra7 {[%emt 0:01:06]} 32. Rxa7 {[%emt 0:02:47]} Nxa7 {[%emt 0:00:01]} 33. Be8 {[%emt 0:00:29]} Kf8 {[%emt 0:00:27]} 34. Ba4 {[%emt 0:01:00]} Ke7 {[%emt 0:00:06]} 35. f3 {[%emt 0:00:58]} Nc8 {[%emt 0:03:03]} 36. Bb5 {[%emt 0:00:51]} Nd6 {[%emt 0:03:51]} 37. Bd3 {[%emt 0:01:00]} Nf5 {[%emt 0:03:59]} 38. Bxf5 {[%emt 0:05:16]} exf5 {[%emt 0:00:05]} 39. g4 {[%emt 0:02:42]} Kf6 {[%emt 0:00:38]} 40. Kg2 {[%emt 0:00:18]} Kg5 {[%emt 0:01:56]} 41. Kg3 {[%emt 0:02:32]} Kxh6 {[%emt 0:02:42]} 42. Kf4 {[%emt 0:04:22]} fxg4 {[%emt 0:00:06]} 43. fxg4 {[%emt 0:00:09]} Kg6 {[%emt 0:00:53]} 44. Ke5 {[%emt 0:01:29]} Kg5 {[%emt 0:00:11]} 45. Kxd5 {[%emt 0:00:07]} Kxg4 {[%emt 0:00:05]} 46. Ke5 {[%emt 0:00:39]} h5 {[%emt 0:00:08]} 47. d5 {[%emt 0:00:02]} h4 {[%emt 0:00:06]} 48. d6 {[%emt 0:00:03]} h3 {[%emt 0:00:02]} 49. d7 {[%emt 0:00:05]} h2 {[%emt 0:00:04]} 50. d8=Q {[%emt 0:00:06]} h1=Q {[%emt 0:00:05]} 51. Qg8+ {[%emt 0:00:24]} Kh3 {[%emt 0:01:31]} 52. Qh8+ {[%emt 0:00:08]} Kg2 {[%emt 0:00:03]} 53. Qxh1+ {[%emt 0:00:16]} Kxh1 {[%emt 0:00:03]} 54. Kd4 {[%emt 0:00:10]} Kg2 {[%emt 0:00:04]} 55. Kc4 {[%emt 0:00:12]} Kf2 {[%emt 0:00:02]} 56. Kxb4 {[%emt 0:00:09]} Ke3 {[%emt 0:00:03]} 57. Kxc3 {[%emt 0:00:05]} Ke4 {[%emt 0:00:05]} 58. Kc4 {[%emt 0:00:06]} Ke5 {[%emt 0:00:03]} 59. Kc5 {[%emt 0:00:07]} Ke6 {[%emt 0:00:05]} 60. Kc6 {[%emt 0:00:07]} Ke7 {[%emt 0:00:02]} 1-0

[Event "Swedish Championship U20 2022"]
[Site "Uppsala"]
[Date "2022.07.02"]
[Round "1.5"]
[White "Soderstrom, Adrian"]
[Black "Falkevall, Axel"]
[Result "1/2-1/2"]
[ECO "D38"]
[WhiteElo "2292"]
[BlackElo "2275"]
[Annotator "TA"]
[PlyCount "69"]
[EventDate "2022.07.01"]
[EventType "tourn"]
[EventCountry "SWE"]
[SourceTitle "playchess.com"]
[Source "ChessBase"]
[SourceQuality "1"]
[TimeControl "40/5400+30:1800+30"]

{[%evp 14,69,12,17,32,9,15,14,11,8,23,29,53,0,0,14,27,10,19,6,25,18,13,17,17,5,5,15,11,0,0,0,0,0,0,0,0,0,0,0,0,0,0,0,0,0,12,12,12,12,5,0,0,0,0,-34,8,-35]} 1. d4 {[%emt 0:00:05]} Nf6 {[%emt 0:00:11]} 2. c4 {[%emt 0:00:05]} e6 {[%emt 0:00:10]} 3. Nf3 {[%emt 0:00:08]} d5 {[%emt 0:00:19]} 4. Nc3 {[%emt 0:00:11]} Bb4 {[%emt 0:00:24]} 5. Bg5 {[%emt 0:00:32]} h6 {[%emt 0:00:20]} 6. Bxf6 {[%emt 0:00:22]} Qxf6 {[%emt 0:00:39]} 7. Qa4+ {[%emt 0:00:19]} Nc6 {[%emt 0:00:23]} 8. e3 {[%emt 0:00:17]} O-O {[%emt 0:04:35] D38: Queen's Gambit Declined: Ragozin Defence (4 Nf3 Bb4).} 9. Rc1 {[%emt 0:01:47]} Rd8 {[%emt 0:08:32]} 10. Be2 {[%emt 0:34:18]} dxc4 {[%emt 0:20:23]} 11. Bxc4 {[%emt 0:25:34] [#]} Qg6 $146 {[%emt 0:13:02]} ({Predecessor:} 11... Bxc3+ 12. bxc3 Bd7 13. Be2 Be8 14. Qb3 Na5 15. Qa3 b6 16. O-O c5 17. dxc5 Qe7 {½-½ (33) Rapport,R (2763)-Nepomniachtchi,I (2792) Paris 2021}) 12. O-O {[%emt 0:01:30]} Bd7 {[%emt 0:06:38][%cal Oc6d4] [#] Hoping for ...Nxd4!} 13. Qc2 {[%emt 0:00:43]} (13. Qd1 {with more complications.} Bd6 14. Bd3 Qh5 15. Be2) 13... Qxc2 {[%emt 0:02:03]} 14. Rxc2 {[%emt 0:00:44]} Bf8 {[%emt 0:14:09]} 15. a3 {[%emt 0:00:56]} Be8 {[%emt 0:05:07]} 16. Rfc1 {[%emt 0:01:49]} Rac8 {[%emt 0:03:50]} 17. Ba2 {[%emt 0:03:36]} Ne7 {[%emt 0:03:03]} 18. Ne4 {[%emt 0:02:38][%cal Bc3e4,Be4c5,Bc5d3,Bd3e5][%mdl 32]} Bc6 {[%emt 0:04:22]} 19. Nc5 {[%emt 0:04:28][%cal Oc5e6]} Bxf3 {[%emt 0:01:30]} 20. gxf3 {[%emt 0:00:03][%cal Oc5e6] Strongly threatening Nxe6!} Rb8 {[%emt 0:00:32]} 21. Nd3 {[%emt 0:04:04]} c6 {[%emt 0:00:33]} 22. Kf1 {[%emt 0:03:32]} Nf5 {[%emt 0:02:04]} 23. Ke2 {[%emt 0:02:54]} Bd6 {[%emt 0:01:06]} 24. f4 {[%emt 0:00:19]} Kf8 {[%emt 0:02:13]} 25. Rc3 {[%emt 0:00:26]} Be7 {[%emt 0:01:30]} 26. Ne5 {[%emt 0:00:43]} Bf6 {[%emt 0:01:00]} 27. Rc5 {[%emt 0:00:42]} Nd6 {[%emt 0:01:10]} 28. Bb1 {[%emt 0:03:28]} Rbc8 {[%emt 0:00:55]} 29. Bd3 {[%emt 0:00:21]} g6 {[%emt 0:00:49]} 30. b4 {[%emt 0:01:16]} a6 {[%emt 0:00:23]} 31. R5c3 {[%emt 0:01:03]} g5 {[%emt 0:00:57]} 32. Ng4 {[%emt 0:00:40]} Bg7 {[%emt 0:00:16]} 33. fxg5 {[%emt 0:01:00]} hxg5 {[%emt 0:00:04]} 34. Rc5 {[%emt 0:00:35]} f6 {[%emt 0:01:08]} (34... f5 $5 {[%cal Rf5g4]}) 35. Rh1 {[%emt 0:05:02] Weighted Error Value: White=0.07 (flawless) /Black=0.05 (flawless)} 1/2-1/2

[Event "Swedish Championship U20 2022"]
[Site "Uppsala"]
[Date "2022.07.03"]
[Round "2.1"]
[White "Ostlund, Joar"]
[Black "Wernberg, Hugo"]
[Result "1/2-1/2"]
[ECO "D37"]
[WhiteElo "2222"]
[BlackElo "2316"]
[Annotator "TA"]
[PlyCount "76"]
[EventDate "2022.07.01"]
[EventType "tourn"]
[EventCountry "SWE"]
[SourceTitle "playchess.com"]
[Source "ChessBase"]
[SourceQuality "1"]
[TimeControl "40/5400+30:1800+30"]

{[%evp 13,76,10,17,11,16,14,17,13,18,16,12,10,10,10,20,0,0,0,0,0,0,0,0,0,0,0,0,0,0,0,0,0,-7,-18,0,-26,0,0,0,0,0,0,0,0,0,0,0,0,0,0,0,0,0,0,0,0,0,0,0,0,0,0,0,0,0]} 1. d4 {[%emt 0:00:03]} d5 {[%emt 0:00:03]} 2. Nf3 {[%emt 0:00:09]} Nf6 {[%emt 0:00:06]} 3. c4 {[%emt 0:00:11]} e6 {[%emt 0:00:05]} 4. Nc3 {[%emt 0:00:09]} Be7 {[%emt 0:00:06]} 5. Bf4 {[%emt 0:00:24]} O-O {[%emt 0:00:12]} 6. e3 {[%emt 0:00:13]} Nbd7 {[%emt 0:00:10]} 7. c5 {[%emt 0:01:07]} Nh5 {[%emt 0:00:15]} 8. Bd3 {[%emt 0:00:12] D37: Queen's Gambit Declined: 5 Bf4.} Nxf4 {[%emt 0:00:07]} 9. exf4 {[%emt 0:00:05]} b6 {[%emt 0:00:11]} 10. b4 {[%emt 0:00:14]} a5 {[%emt 0:00:10]} 11. a3 {[%emt 0:00:29]} c6 {[%emt 0:00:12]} 12. O-O {[%emt 0:00:17]} Ba6 {[%emt 0:00:26]} 13. Bxa6 {[%emt 0:01:07]} Rxa6 {[%emt 0:00:15]} 14. Qe2 {[%emt 0:00:12]} Qa8 $1 {[%emt 0:00:28][%mdl 4] [#] Hoping for ...axb4. is now more promising than 14...Ra8.} 15. Rab1 {[%emt 0:06:04]} axb4 {[%emt 0:15:08]} 16. axb4 {[%emt 0:01:26]} Ra3 {[%emt 0:12:22]} 17. Rfc1 {[%emt 0:19:50]} Bf6 {[%emt 0:12:16] [#]} 18. Qd2 $146 {[%emt 0:07:03]} ({Predecessor:} 18. Nd1 Rb8 19. Ne3 Ra2 20. Qd1 g6 21. g3 Bg7 22. Ra1 bxc5 23. bxc5 Nf6 24. Rxa2 Qxa2 {½-½ (68) Yu,Y (2709)-Grischuk,A (2777) Chess.com INT 2020}) 18... bxc5 {[%emt 0:20:28]} 19. bxc5 {[%emt 0:00:29]} Rb8 {[%emt 0:02:04]} 20. Ne5 {[%emt 0:05:31]} Nxe5 {[%emt 0:04:55]} 21. fxe5 {[%emt 0:00:12]} Bd8 {[%emt 0:00:35] [#] White must now prevent ...Ba5.} 22. Rxb8 {[%emt 0:30:47]} Qxb8 {[%emt 0:00:20]} 23. Rb1 {[%emt 0:00:45]} Qa8 {[%emt 0:07:24]} 24. Qb2 {[%emt 0:05:05]} Kf8 {[%emt 0:02:04]} 25. g3 {[%emt 0:00:57] The position is equal.} Ke8 {[%emt 0:01:47]} 26. Kg2 {[%emt 0:04:08]} Qa5 {[%emt 0:05:25]} 27. Qb7 {[%emt 0:01:44]} Qc7 {[%emt 0:00:41]} ({Don't do} 27... Qxc3 28. Qxc6+ Kf8 29. Qd7 (29. Qd6+ Ke8 $16) 29... Qf3+ 30. Kg1 $16) 28. Qb2 {[%emt 0:00:34]} Qa7 {[%emt 0:01:03]} 29. Qb4 {[%emt 0:01:47]} Ra5 {[%emt 0:01:06]} 30. Qb3 {[%emt 0:03:57]} Ra3 {[%emt 0:01:58]} 31. Qb2 {[%emt 0:00:45]} Qa6 {[%emt 0:02:18]} 32. Qb4 {[%emt 0:01:40]} Bc7 {[%emt 0:01:35]} 33. Rb3 {[%emt 0:02:10]} Ra1 {[%emt 0:01:00] And now ...Qf1+ would win.} 34. Rb1 {[%emt 0:00:41] Inhibits Qf1+.} Ra3 {[%emt 0:01:00]} 35. Rb3 {[%emt 0:00:10]} Ra5 {[%emt 0:00:30]} 36. Rb2 {[%emt 0:01:24]} Kd7 {[%emt 0:00:46]} 37. Ne2 {[%emt 0:01:11]} Qd3 {[%emt 0:04:36]} 38. Qd2 {[%emt 0:03:11]} Qxd2 {[%emt 0:01:05] An interesting draw.  Weighted Error Value: White=0.01 (flawless) /Black=0.01 (flawless)} 1/2-1/2